[Event "7th Ali Ipek Memorial 2019"]
[Site "Ankara"]
[Date "2019.03.10"]
[Round "7.8"]
[White "Subasi, Fidel"]
[Black "Yuksel, Mahmut"]
[Result "1-0"]
[ECO "A44"]
[WhiteElo "1692"]
[BlackElo "1720"]
[Annotator "NA"]
[PlyCount "109"]
[EventDate "2019.03.06"]
[EventType "swiss"]
[EventCountry "TUR"]
[SourceTitle "playchess.com"]
[Source "ChessBase"]
[SourceQuality "1"]
[TimeControl "5400+30"]

1. d4 {[%emt 0:00:30]} c5 {[%emt 0:00:30]} 2. d5 {[%emt 0:00:00]} e5 {[%emt 0:00:00]} 3. e4 {[%emt 0:01:00]} d6 {[%emt 0:00:00]} 4. f4 {[%emt 0:03:30]} exf4 {[%emt 0:06:30]} 5. Nf3 {[%emt 0:05:30]} g5 {[%emt 0:01:30]} 6. Bb5+ {[%emt 0:04:30]} Bd7 {[%emt 0:00:30]} 7. Bxd7+ {[%emt 0:01:30]} Nxd7 {[%emt 0:00:30]} 8. O-O {[%emt 0:00:30]} h6 {[%emt 0:09:30]} 9. Bd2 {[%emt 0:01:30]} Bg7 {[%emt 0:00:30]} 10. Bc3 {[%emt 0:00:30]} Bxc3 {[%emt 0:00:30]} 11. Nxc3 {[%emt 0:00:00]} Qb6 {[%emt 0:00:30]} 12. Qe2 {[%emt 0:04:00]} O-O-O {[%emt 0:01:30]} 13. a4 {[%emt 0:02:30]} Ne5 {[%emt 0:01:30]} 14. Nxe5 {[%emt 0:01:30]} dxe5 {[%emt 0:00:00]} 15. a5 {[%emt 0:04:30]} Qa6 {[%emt 0:08:00]} 16. Qxa6 {[%emt 0:03:30]} bxa6 {[%emt 0:00:30]} 17. Na4 {[%emt 0:00:00]} f5 {[%emt 0:01:30]} 18. Nxc5 {[%emt 0:03:00]} fxe4 {[%emt 0:00:30]} 19. c4 {[%emt 0:00:30]} e3 {[%emt 0:00:00]} 20. Nxa6 {[%emt 0:01:30]} Nf6 {[%emt 0:00:00]} 21. Nb4 {[%emt 0:01:30]} Rh7 {[%emt 0:02:30]} 22. Nc6 {[%emt 0:00:30]} Rd6 {[%emt 0:00:30]} 23. Nxe5 {[%emt 0:01:30]} Ne4 {[%emt 0:00:30]} 24. b4 {[%emt 0:07:30]} Nd2 {[%emt 0:01:30]} 25. Rfe1 {[%emt 0:02:30]} Kb7 {[%emt 0:10:30]} 26. Rac1 {[%emt 0:05:30]} Re7 {[%emt 0:00:30]} 27. Nd3 {[%emt 0:03:30]} f3 {[%emt 0:04:30]} 28. Nc5+ {[%emt 0:01:30]} Kc8 {[%emt 0:01:30]} 29. gxf3 {[%emt 0:00:30]} Nxf3+ {[%emt 0:00:30]} 30. Kg2 {[%emt 0:00:00]} Nxe1+ {[%emt 0:04:30]} 31. Rxe1 {[%emt 0:00:00]} Rf6 {[%emt 0:00:30]} 32. Ne6 {[%emt 0:00:30]} Rf2+ {[%emt 0:03:30]} 33. Kg3 {[%emt 0:00:30]} Rc2 {[%emt 0:01:30]} 34. c5 {[%emt 0:09:30]} e2 {[%emt 0:04:30]} 35. Nd4 {[%emt 0:03:30]} Rd2 {[%emt 0:12:30]} 36. d6 {[%emt 0:03:30]} Rf7 {[%emt 0:04:55]} 37. Nxe2 {[%emt 0:03:30]} Rb7 {[%emt 0:00:21]} 38. c6 {[%emt 0:03:57]} Rd3+ {[%emt 0:03:04]} 39. Kg2 {[%emt 0:00:54]} Rxb4 {[%emt 0:02:58]} 40. Nd4 {[%emt 0:00:49]} Rb2+ {[%emt 0:01:09]} 41. Kf1 {[%emt 0:00:54]} Rb1 {[%emt 0:00:51]} 42. d7+ {[%emt 0:04:17]} Kc7 {[%emt 0:00:33]} 43. Ne6+ {[%emt 0:00:48]} Kxc6 {[%emt 0:01:10]} 44. d8=N+ {[%emt 0:00:56]} Kb5 {[%emt 0:03:31]} 45. Rxb1+ {[%emt 0:00:19]} Kc4 {[%emt 0:00:32]} 46. Rb7 {[%emt 0:00:30]} Rd1+ {[%emt 0:00:34]} 47. Ke2 {[%emt 0:00:41]} Ra1 {[%emt 0:00:10]} 48. Rxa7 {[%emt 0:00:23]} Ra2+ {[%emt 0:00:30]} 49. Ke3 {[%emt 0:00:30]} Rxh2 {[%emt 0:00:00]} 50. Nc6 {[%emt 0:00:20]} g4 {[%emt 0:00:39]} 51. Ned4 {[%emt 0:00:37]} h5 {[%emt 0:01:17]} 52. Kf4 {[%emt 0:00:30]} Kc5 {[%emt 0:00:34]} 53. Rb7 {[%emt 0:01:20]} Rf2+ {[%emt 0:00:49]} 54. Kg3 {[%emt 0:00:30]} Ra2 {[%emt 0:00:00]} 55. Rb5+ {[%emt 0:00:10]} 1-0

[Event "7th Ali Ipek Memorial 2019"]
[Site "Ankara"]
[Date "2019.03.10"]
[Round "7.9"]
[White "Kaynak, Deniz Can"]
[Black "Turkmen, Ataberk"]
[Result "0-1"]
[ECO "B07"]
[WhiteElo "1467"]
[BlackElo "1868"]
[Annotator "NA"]
[PlyCount "92"]
[EventDate "2019.03.06"]
[EventType "swiss"]
[EventCountry "TUR"]
[SourceTitle "playchess.com"]
[Source "ChessBase"]
[SourceQuality "1"]
[TimeControl "5400+30"]

1. e4 {[%emt 0:00:30]} d6 {[%emt 0:00:30]} 2. d4 {[%emt 0:00:00]} Nf6 {[%emt 0:00:30]} 3. Nc3 {[%emt 0:00:00]} g6 {[%emt 0:00:30]} 4. Bg5 {[%emt 0:00:00]} Bg7 {[%emt 0:00:00]} 5. e5 {[%emt 0:00:00]} Nfd7 {[%emt 0:03:00]} 6. f4 {[%emt 0:02:30]} O-O {[%emt 0:10:30]} 7. Nf3 {[%emt 0:09:30] LiveBook: 8 Games} c5 {[%emt 0:06:30] B07: Pirc Defence: Miscellaneous Systems} (7... Nb6 8. Be2 Nc6 9. O-O f6 10. exf6 exf6 11. Bh4 d5 12. Ne1 Ne7 13. g4 Nc4 14. Bxc4 dxc4 15. Ng2 {0-1 (35) Gashimov,V (2761)-Ivanchuk,V (2766) Wijk aan Zee 2012}) 8. exd6 {[%emt 0:21:30]} f6 {[%emt 0:00:30]} 9. Bc4+ {[%emt 0:01:30]} Kh8 {[%emt 0:00:30]} 10. Bh4 {[%emt 0:00:30]} exd6 {[%emt 0:06:30]} 11. O-O {[%emt 0:01:30]} Nb6 {[%emt 0:00:00]} 12. Be2 {[%emt 0:01:30]} Nc6 {[%emt 0:01:00]} 13. dxc5 {[%emt 0:12:30]} dxc5 {[%emt 0:00:30]} 14. Qxd8 {[%emt 0:05:30]} Rxd8 {[%emt 0:01:30]} 15. Rad1 $146 {[%emt 0:00:30]} ({Predecessor:} 15. Bf2) 15... Bf5 {[%emt 0:04:30]} 16. Bf2 {[%emt 0:06:30]} Bf8 {[%emt 0:03:30]} 17. Bd3 {[%emt 0:05:30]} Bxd3 {[%emt 0:02:30]} 18. Rxd3 {[%emt 0:00:30]} Rxd3 {[%emt 0:01:30]} 19. cxd3 {[%emt 0:00:30]} Rd8 {[%emt 0:05:30]} 20. Rd1 {[%emt 0:03:30]} Nd5 {[%emt 0:04:30]} 21. g3 {[%emt 0:05:30]} b6 {[%emt 0:08:30]} 22. d4 {[%emt 0:06:36]} Nxc3 {[%emt 0:16:30]} 23. bxc3 {[%emt 0:00:21]} cxd4 {[%emt 0:00:30]} 24. Nxd4 {[%emt 0:03:46]} Bc5 {[%emt 0:02:30]} 25. Kf1 $11 {[%emt 0:06:09]} Bxd4 {[%emt 0:00:00]} 26. Bxd4 {[%emt 0:00:23]} Nxd4 {[%emt 0:01:00]} 27. cxd4 {[%emt 0:00:43]} Kg8 {[%emt 0:00:30]} 28. Ke2 {[%emt 0:00:43]} Kf7 {[%emt 0:00:30]} 29. Kd3 {[%emt 0:00:38]} Ke6 {[%emt 0:00:30]} 30. Ke4 {[%emt 0:02:29]} Rd5 {[%emt 0:03:25]} 31. Rc1 {[%emt 0:01:04]} f5+ {[%emt 0:00:03]} 32. Kd3 {[%emt 0:00:05]} Kd7 {[%emt 0:02:10]} 33. Rc2 {[%emt 0:02:21]} Ra5 {[%emt 0:00:25]} 34. Re2 {[%emt 0:00:02]} b5 {[%emt 0:01:38]} 35. Rb2 {[%emt 0:00:13]} Ra3+ {[%emt 0:00:00]} 36. Kd2 {[%emt 0:00:35]} a6 {[%emt 0:00:18]} 37. Kc1 {[%emt 0:00:37]} Ra4 {[%emt 0:03:29]} 38. Rd2 {[%emt 0:00:30]} Kd6 {[%emt 0:00:00]} 39. Kb2 {[%emt 0:00:00]} Rb4+ {[%emt 0:00:30]} 40. Kc3 {[%emt 0:00:34]} Rc4+ {[%emt 0:00:30]} 41. Kd3 {[%emt 0:00:00]} Kd5 {[%emt 0:00:12]} 42. Ke3 {[%emt 0:00:15]} Rc3+ {[%emt 0:00:00]} 43. Ke2 {[%emt 0:00:43]} b4 {[%emt 0:00:15]} 44. Rb2 {[%emt 0:01:28]} a5 {[%emt 0:00:30]} 45. Rd2 {[%emt 0:00:30]} a4 {[%emt 0:00:33]} 46. Rb2 {[%emt 0:00:37]} Rc4 {[%emt 0:00:20]} 0-1

[Event "7th Ali Ipek Memorial 2019"]
[Site "Ankara"]
[Date "2019.03.10"]
[Round "7.10"]
[White "Ozen, Halil Ibrahim"]
[Black "Elveren, Cinar"]
[Result "0-1"]
[ECO "B09"]
[WhiteElo "1637"]
[BlackElo "1391"]
[Annotator "NA"]
[PlyCount "107"]
[EventDate "2019.03.06"]
[EventType "swiss"]
[EventCountry "TUR"]
[SourceTitle "playchess.com"]
[Source "ChessBase"]
[SourceQuality "1"]
[TimeControl "5400+30"]

1. e4 {[%emt 0:00:30]} d6 {[%emt 0:01:30]} 2. d4 {[%emt 0:00:30]} Nf6 {[%emt 0:00:30]} 3. Nc3 {[%emt 0:00:30]} g6 {[%emt 0:00:00]} 4. f4 {[%emt 0:00:30]} Bg7 {[%emt 0:00:00]} 5. Nf3 {[%emt 0:00:00]} O-O {[%emt 0:00:30]} 6. Bd3 {[%emt 0:01:00]} Na6 {[%emt 0:05:30]} 7. O-O {[%emt 0:00:30]} c5 {[%emt 0:00:30]} 8. d5 {[%emt 0:01:30]} Nc7 {[%emt 0:02:30]} 9. Qe1 {[%emt 0:02:30]} a6 {[%emt 0:00:30]} 10. Qh4 {[%emt 0:02:30]} h5 {[%emt 0:30:30]} 11. f5 {[%emt 0:02:30]} c4 {[%emt 0:05:30]} 12. Bxc4 {[%emt 0:00:30]} gxf5 {[%emt 0:00:30]} 13. exf5 {[%emt 0:00:30]} Bxf5 {[%emt 0:04:30]} 14. Bg5 {[%emt 0:02:30]} Nce8 {[%emt 0:03:30]} 15. Rae1 {[%emt 0:02:30]} Bg6 {[%emt 0:03:30]} 16. Nd4 {[%emt 0:01:30]} Ng4 {[%emt 0:05:30]} 17. Bxe7 {[%emt 0:00:30]} Bxd4+ {[%emt 0:00:30]} 18. Kh1 {[%emt 0:00:30]} Qb6 {[%emt 0:07:30]} 19. Ne4 {[%emt 0:03:30]} Ng7 {[%emt 0:01:30]} 20. h3 {[%emt 0:02:30]} Rfe8 {[%emt 0:11:03]} 21. hxg4 {[%emt 0:01:30]} Rxe7 {[%emt 0:01:42]} 22. Qxe7 {[%emt 0:00:30]} Re8 {[%emt 0:00:01]} 23. Nf6+ {[%emt 0:00:30]} Bxf6 {[%emt 0:01:16]} 24. Qxf6 {[%emt 0:00:30]} Rxe1 {[%emt 0:00:38]} 25. Rxe1 {[%emt 0:00:30]} Qb4 {[%emt 0:00:00]} 26. Qc3 {[%emt 0:00:30]} Qxc3 {[%emt 0:01:05]} 27. bxc3 {[%emt 0:00:00]} Bxc2 {[%emt 0:00:27]} 28. gxh5 {[%emt 0:00:00]} Nxh5 {[%emt 0:00:29]} 29. Re7 {[%emt 0:00:30]} b5 {[%emt 0:01:27]} 30. Bb3 {[%emt 0:00:30]} Ng3+ {[%emt 0:00:50]} 31. Kh2 {[%emt 0:01:30]} Bxb3 {[%emt 0:01:12]} 32. axb3 {[%emt 0:00:30]} Nf5 {[%emt 0:00:00]} 33. Re8+ {[%emt 0:00:30]} Kg7 {[%emt 0:00:26]} 34. g4 {[%emt 0:00:30]} Nh6 {[%emt 0:00:55]} 35. Kg3 {[%emt 0:00:00]} Kf6 {[%emt 0:00:22]} 36. Kf4 {[%emt 0:00:00]} Kg6 {[%emt 0:01:12]} 37. Ra8 {[%emt 0:00:30]} f6 {[%emt 0:00:41]} 38. Rxa6 {[%emt 0:00:30]} Nf7 {[%emt 0:00:18]} 39. Rb6 {[%emt 0:00:00]} Ne5 {[%emt 0:00:00]} 40. Rxd6 {[%emt 0:01:00]} Nd3+ {[%emt 0:00:04]} 41. Kf3 {[%emt 0:02:30]} b4 {[%emt 0:00:46]} 42. cxb4 {[%emt 0:00:30]} Nxb4 {[%emt 0:00:57]} 43. Ke4 {[%emt 0:00:30]} Nc2 {[%emt 0:02:20]} 44. Rc6 {[%emt 0:00:30]} Nb4 {[%emt 0:00:42]} 45. Rc4 {[%emt 0:01:30]} Na6 {[%emt 0:00:30]} 46. d6 {[%emt 0:00:30]} Nb8 {[%emt 0:00:00]} 47. Rc8 {[%emt 0:01:30]} Nd7 {[%emt 0:00:00]} 48. Rc7 {[%emt 0:00:00]} Nf8 {[%emt 0:01:18]} 49. d7 {[%emt 0:01:00]} Ne6 {[%emt 0:01:09]} 50. Rc8 {[%emt 0:00:30]} Ng5+ {[%emt 0:00:22]} 51. Ke3 {[%emt 0:00:00]} f5 {[%emt 0:00:00]} 52. Rg8+ {[%emt 0:01:00]} Kf7 {[%emt 0:00:27]} 53. Rxg5 {[%emt 0:00:30]} f4+ {[%emt 0:00:00]} 54. Kxf4 {[%emt 0:00:00]} 0-1

[Event "7th Ali Ipek Memorial 2019"]
[Site "Ankara"]
[Date "2019.03.10"]
[Round "7.11"]
[White "Kayaman, Metin"]
[Black "Vural, Burak"]
[Result "1-0"]
[ECO "E66"]
[WhiteElo "1667"]
[BlackElo "1501"]
[Annotator "NA"]
[PlyCount "79"]
[EventDate "2019.03.06"]
[EventType "swiss"]
[EventCountry "TUR"]
[SourceTitle "playchess.com"]
[Source "ChessBase"]
[SourceQuality "1"]
[TimeControl "5400+30"]

1. d4 {[%emt 0:00:30]} Nf6 {[%emt 0:00:30]} 2. Nf3 {[%emt 0:00:30]} g6 {[%emt 0:00:30]} 3. c4 {[%emt 0:03:30]} Bg7 {[%emt 0:00:00]} 4. Nc3 {[%emt 0:00:30]} O-O {[%emt 0:00:00]} 5. g3 {[%emt 0:00:30]} c5 {[%emt 0:02:30]} 6. Bg2 {[%emt 0:00:30]} Nc6 {[%emt 0:02:30]} 7. d5 {[%emt 0:04:30]} Na5 {[%emt 0:00:30]} 8. Nd2 {[%emt 0:00:30]} d6 {[%emt 0:04:30]} 9. O-O {[%emt 0:00:30]} e6 {[%emt 0:01:30]} 10. e4 {[%emt 0:03:30]} exd5 {[%emt 0:00:30]} 11. exd5 {[%emt 0:00:30]} Bg4 {[%emt 0:02:30]} 12. f3 {[%emt 0:01:30]} Bf5 {[%emt 0:01:30]} 13. Re1 {[%emt 0:00:30]} Bd3 {[%emt 0:08:30]} 14. Bf1 {[%emt 0:01:30]} Bxf1 {[%emt 0:01:30]} 15. Kxf1 {[%emt 0:01:30]} Qd7 {[%emt 0:03:30]} 16. Kg2 {[%emt 0:00:30]} Rfe8 {[%emt 0:05:30]} 17. Rb1 {[%emt 0:04:30]} Rxe1 {[%emt 0:12:30]} 18. Qxe1 {[%emt 0:00:30]} Re8 {[%emt 0:00:30]} 19. Qf1 {[%emt 0:00:30]} h5 {[%emt 0:07:30]} 20. Nde4 {[%emt 0:02:30]} h4 {[%emt 0:07:30]} 21. Bg5 {[%emt 0:02:30]} Nxe4 {[%emt 0:10:30]} 22. Nxe4 {[%emt 0:03:30]} Qf5 {[%emt 0:07:35]} 23. g4 {[%emt 0:03:30]} Qe5 {[%emt 0:02:46]} 24. Bxh4 {[%emt 0:03:30]} f5 {[%emt 0:00:21]} 25. Bg3 {[%emt 0:01:30]} Qd4 {[%emt 0:03:12]} 26. Nxd6 {[%emt 0:01:30]} Qd2+ {[%emt 0:03:58]} 27. Kh1 {[%emt 0:00:30]} Re2 {[%emt 0:01:47]} 28. Re1 {[%emt 0:01:30]} Rxe1 {[%emt 0:03:08]} 29. Qxe1 {[%emt 0:00:30]} Qd3 {[%emt 0:01:21]} 30. Kg2 {[%emt 0:07:30]} fxg4 {[%emt 0:00:39]} 31. Qe6+ {[%emt 0:02:30]} Kh7 {[%emt 0:01:08]} 32. Qxg4 {[%emt 0:05:30]} Qe2+ {[%emt 0:01:40]} 33. Bf2 {[%emt 0:00:30]} Qxb2 {[%emt 0:02:54]} 34. Qh4+ {[%emt 0:01:30]} Bh6 35. Nf7 {[%emt 0:02:30]} Qd2 {[%emt 0:01:15]} 36. Nxh6 {[%emt 0:01:30]} Qxh6 {[%emt 0:00:11]} 37. Qxh6+ {[%emt 0:00:30]} Kxh6 {[%emt 0:00:30]} 38. d6 {[%emt 0:00:00]} b6 {[%emt 0:00:00]} 39. d7 {[%emt 0:01:00]} Nc6 {[%emt 0:00:00]} 40. Bg3 {[%emt 0:00:30]} 1-0

[Event "7th Ali Ipek Memorial 2019"]
[Site "Ankara"]
[Date "2019.03.10"]
[Round "7.12"]
[White "Turkmen, Ataberk"]
[Black "Kayan, Yasar Efe"]
[Result "0-1"]
[ECO "E01"]
[WhiteElo "1868"]
[BlackElo "1516"]
[Annotator "NA"]
[PlyCount "138"]
[EventDate "2019.03.06"]
[EventType "swiss"]
[EventCountry "TUR"]
[SourceTitle "playchess.com"]
[Source "ChessBase"]
[SourceQuality "1"]
[TimeControl "5400+30"]

1. d4 {[%emt 0:00:30]} e6 {[%emt 0:00:30]} 2. Nf3 {[%emt 0:00:00]} Nf6 {[%emt 0:00:00]} 3. g3 {[%emt 0:00:00]} d5 {[%emt 0:00:00]} 4. Bg2 {[%emt 0:00:30]} c6 {[%emt 0:00:30]} 5. O-O {[%emt 0:00:00]} Bd6 {[%emt 0:00:30]} 6. b3 {[%emt 0:00:00]} O-O {[%emt 0:00:00]} 7. c4 {[%emt 0:00:30]} Nbd7 {[%emt 0:01:00]} 8. Bb2 {[%emt 0:00:30]} Qe7 {[%emt 0:02:30]} 9. Nc3 {[%emt 0:02:30]} a6 {[%emt 0:05:30] E01: Catalan: Early deviations} (9... dxc4 10. bxc4 e5 11. e3 Ba3 12. Bxa3 Qxa3 13. Qb3 Qxb3 14. axb3 exd4 15. exd4 Rd8 16. Rfd1 Nb6 17. d5 cxd5 {1-0 (50) Kanmazalp,O (2471)-Spalir,J (2363) Budapest 2018}) 10. c5 $146 {[%emt 0:06:30]} ({Predecessor:} 10. a4 Ne4 11. Nxe4 dxe4 12. Ne5 f5 13. Qd2 c5 14. Rfd1 Nxe5 15. dxe5 Bc7 16. f3 exf3 17. exf3 {0-1 (40) Kiefer,D (2236)-Callam,H (2121) Germany 2005}) 10... Bc7 {[%emt 0:01:30]} 11. Rc1 {[%emt 0:00:30]} e5 {[%emt 0:01:30]} 12. dxe5 {[%emt 0:09:30]} Nxe5 {[%emt 0:00:30]} 13. e4 {[%emt 0:01:30]} (13. Nd4 $11 {remains equal.}) 13... Nxf3+ {[%emt 0:06:30]} (13... dxe4 $17 14. Nxe5 Bxe5) 14. Bxf3 {[%emt 0:05:30]} (14. Qxf3 $11 {keeps the balance.} dxe4 15. Nxe4 Qxe4 16. Qxe4 Nxe4 17. Bxe4) 14... dxe4 {[%emt 0:00:00]} (14... Nxe4 $17 15. Re1 (15. Nxe4 dxe4 16. Bg2 f5 $17) 15... f5) 15. Re1 $1 {[%emt 0:00:30]} Bf5 {[%emt 0:01:00] [#]} 16. Nxe4 $1 {[%emt 0:03:30]} Nxe4 {[%emt 0:02:30]} 17. Bxe4 {[%emt 0:00:30]} (17. Qd4 $11 {keeps the balance.} Qf6 18. Bxe4 Qxd4 19. Bxd4 Bxe4 20. Rxe4) 17... Bxe4 {[%emt 0:00:30]} 18. f3 {[%emt 0:00:00]} f5 {[%emt 0:01:30]} 19. Qc2 {[%emt 0:02:00]} Rae8 {[%emt 0:07:30]} ({Weaker is} 19... Bxc2 20. Rxe7 Rf7 21. Rxf7 $11) ({Black should try} 19... Qg5 $19 20. fxe4 f4) 20. Qc4+ {[%emt 0:02:30] Pin} Kh8 {[%emt 0:00:30]} 21. Re3 $2 {[%emt 0:05:30]} (21. Qc3 $17) 21... Qg5 {[%emt 0:11:30]} 22. Qe2 {[%emt 0:05:30]} Bxg3 {[%emt 0:14:30]} 23. hxg3 {[%emt 0:05:30] [#]} Qxg3+ $17 {[%emt 0:00:30]} (23... Bxf3 $1 $19 {[%mdl 512]} 24. Rxe8 (24. Qxf3 Rxe3) 24... Qxg3+ 25. Kf1 Bxe2+ 26. Rxe2 Qf3+ 27. Ke1 f4) 24. Qg2 {[%emt 0:01:30]} Qxg2+ {[%emt 0:00:00]} 25. Kxg2 {[%emt 0:00:30]} Bd5 {[%emt 0:00:00]} 26. Rce1 {[%emt 0:00:30]} Bf7 {[%emt 0:14:30]} 27. Re5 {[%emt 0:06:30]} Kg8 {[%emt 0:03:30]} 28. Kg3 {[%emt 0:04:30]} g5 {[%emt 0:12:49]} 29. Re7 {[%emt 0:03:30]} Rxe7 {[%emt 0:11:54]} 30. Rxe7 {[%emt 0:00:30]} Re8 {[%emt 0:00:00]} 31. Rxb7 {[%emt 0:00:00]} h5 {[%emt 0:00:30]} 32. Bf6 {[%emt 0:02:00]} f4+ {[%emt 0:01:03]} 33. Kh3 {[%emt 0:00:30]} Re3 {[%emt 0:00:59]} 34. Rb8+ {[%emt 0:01:30]} Kh7 {[%emt 0:00:17]} 35. Bxg5 {[%emt 0:00:30]} Rxf3+ {[%emt 0:00:43]} 36. Kh2 {[%emt 0:00:30]} Kg6 {[%emt 0:00:59]} 37. Bh4 {[%emt 0:00:30]} Rc3 {[%emt 0:00:01]} 38. Rd8 {[%emt 0:00:30]} Rc2+ {[%emt 0:00:27]} 39. Kg1 {[%emt 0:00:00]} Kf5 {[%emt 0:00:42]} 40. Rd6 {[%emt 0:02:00]} Rxc5 {[%emt 0:00:52]} 41. Rf6+ {[%emt 0:00:30]} Kg4 {[%emt 0:00:00]} 42. Rxf7 {[%emt 0:00:30]} Kxh4 {[%emt 0:00:13]} 43. Rxf4+ {[%emt 0:00:30]} Kg3 {[%emt 0:00:00]} 44. Rf1 {[%emt 0:00:00]} Rc2 {[%emt 0:00:00]} 45. Ra1 {[%emt 0:00:00]} Rb2 {[%emt 0:00:21]} 46. Kh1 {[%emt 0:00:30]} h4 {[%emt 0:00:05]} 47. Rg1+ {[%emt 0:00:30]} Kf3 {[%emt 0:00:00]} 48. Rc1 {[%emt 0:00:00]} Rxa2 {[%emt 0:01:32]} 49. Rxc6 {[%emt 0:00:00]} Ke3 {[%emt 0:00:42]} 50. Rh6 {[%emt 0:00:30]} Kd3 {[%emt 0:00:37]} 51. Rxh4 {[%emt 0:00:30]} Kc3 {[%emt 0:00:10]} 52. Ra4 {[%emt 0:01:30]} Rxa4 {[%emt 0:00:47]} 53. bxa4 {[%emt 0:00:30]} Kb4 {[%emt 0:00:30]} 54. Kg2 {[%emt 0:00:30]} Kxa4 {[%emt 0:00:30]} 55. Kf2 {[%emt 0:00:00]} Kb3 {[%emt 0:00:00]} 56. Ke2 {[%emt 0:00:00]} Kc2 {[%emt 0:00:00]} 57. Ke3 {[%emt 0:00:00]} a5 {[%emt 0:00:00]} 58. Kd4 {[%emt 0:00:00]} a4 {[%emt 0:00:00]} 59. Kc4 {[%emt 0:00:30]} a3 {[%emt 0:00:17]} 60. Kb4 {[%emt 0:00:30]} a2 {[%emt 0:00:00]} 61. Ka3 {[%emt 0:00:00]} a1=Q+ {[%emt 0:00:07]} 62. Kb4 {[%emt 0:00:00]} Qd4+ {[%emt 0:00:30]} 63. Kb5 {[%emt 0:00:00]} Kb3 {[%emt 0:00:00]} 64. Kc6 {[%emt 0:00:00]} Kc4 {[%emt 0:00:27]} 65. Kb7 {[%emt 0:00:00]} Qd6 {[%emt 0:00:00]} 66. Kc8 {[%emt 0:00:00]} Qe7 {[%emt 0:00:21]} 67. Kb8 {[%emt 0:00:00]} Kb5 {[%emt 0:00:00]} 68. Ka8 {[%emt 0:00:00]} Ka6 {[%emt 0:00:00]} 69. Kb8 {[%emt 0:00:30]} Qd8# {[%emt 0:00:00]} 0-1